bitfinex-derivatives/quotes_ETHF0:USTF0_20250704
["timestamp","ask_amount","ask_price","bid_price","bid_amount"]
[1751649722167,4.15122144,2491.3,2491.2,0.80262]
[1751649722671,3.0600364,2491.3,2491.2,0.80262]
[1751649723069,2.2574364,2491.3,2491.2,0.80262]
[1751649723772,15.46825,2491.8,2491.0,5.21452]
[1751649723965,0.9241364,2491.5,2491.4,0.80256]
[1751649724270,3.2078,2491.8,2491.7,0.80246]
[1751649724462,5.63273312,2491.8,2491.7,0.80246]
[1751649724660,6.55686952,2491.8,2491.7,0.80246]
[1751649724860,7.35929952,2491.8,2491.7,0.80246]
[1751649725168,0.80251,2491.7,2491.6,0.80247]
[1751649725373,3.0361464,2491.7,2491.6,0.80247]
[1751649725564,0.80256,2491.5,2491.4,0.80253]
[1751649725866,0.80256,2491.4,2491.3,4.71777]
[1751649726070,2.11206,2491.4,2491.3,4.71777]
[1751649726270,2.0275,2491.4,2491.3,4.71777]
[1751649727368,2.83006,2491.4,2491.3,4.71777]
[1751649727871,2.0275,2491.4,2491.3,4.71777]
[1751649728169,2.0275,2491.4,2491.3,1.50997]
[1751649728370,0.718,2491.4,2491.3,1.50997]
[1751649728572,2.90045,2491.8,2491.7,0.80246]
[1751649728864,3.98674812,2491.8,2491.7,0.80246]
[1751649729071,4.91088452,2491.8,2491.7,0.80246]
[1751649730870,4.10843452,2491.8,2491.7,0.80246]
[1751649732071,4.91086452,2491.8,2491.7,0.80246]
[1751649732672,3.98672812,2491.8,2491.7,0.80246]
[1751649732870,0.8025,2491.7,2491.6,0.80247]
[1751649733171,2.1477,2491.7,2491.6,0.80247]
[1751649733471,3.0718364,2491.7,2491.6,0.80247]
[1751649733866,2.2693364,2491.7,2491.6,0.80247]
[1751649734473,3.0717964,2491.7,2491.6,0.80247]
[1751649734673,1.7265964,2491.7,2491.6,0.80247]
[1751649735268,3.1344964,2491.7,2491.6,0.80247]
[1751649736474,2.3320364,2491.7,2491.6,0.80247]
[1751649736675,3.1344964,2491.7,2491.6,0.80247]
[1751649736975,0.80246,2491.7,2491.6,0.80247]
[1751649739475,0.80244,2491.8,2491.7,0.80243]
[1751649739675,1.8881826,2491.8,2491.7,0.80243]
[1751649739877,2.812319,2491.8,2491.7,0.80243]
[1751649740472,4.156719,2491.8,2491.7,0.80243]
[1751649740672,3.0709764,2491.8,2491.7,0.80243]
[1751649741472,1.7265764,2491.8,2491.7,0.80243]
[1751649746782,1.3444,2492.0,2491.9,0.8024]
[1751649746983,0.80241,2492.0,2491.9,0.80236]
[1751649747185,2.10701,2492.0,2491.9,0.80236]
[1751649747683,1.3046,2492.0,2491.9,0.80236]
[1751649747984,1.51429,2492.4,2492.3,0.80227]
[1751649748173,3.25814752,2492.4,2492.3,0.80227]
[1751649748375,4.4003264,2492.4,2492.3,0.80227]
[1751649749883,0.8023,2492.3,2492.2,0.80227]
[1751649750184,3.1088364,2492.3,2492.2,0.80227]
[1751649751185,2.3065364,2492.3,2492.2,0.80227]
[1751649751484,2.00544,2492.7,2492.6,0.80217]
[1751649751485,0.80215,2492.7,2492.6,0.80217]
[1751649751780,4.5902,2492.9,2492.8,0.80211]
[1751649751987,4.1319364,2492.9,2492.8,0.80211]
[1751649752374,3.2078,2492.9,2492.8,0.80211]
[1751649752579,4.00987,2492.9,2492.8,0.80211]
[1751649752783,0.80213,2492.8,2492.7,0.80211]
[1751649753079,3.8532664,2492.8,2492.7,0.80211]
[1751649753280,3.8532464,2492.8,2492.7,0.80211]
[1751649754678,3.0511364,2492.8,2492.7,0.80211]
[1751649754874,3.2078,2493.2,2493.1,0.80201]
[1751649755681,3.2078,2493.6,2493.5,0.80188]
[1751649756186,4.1319364,2493.6,2493.5,0.80188]
[1751649756376,2.2803364,2493.6,2493.5,0.80188]
[1751649756780,1.3562,2493.6,2493.5,0.80188]
[1751649757489,1.3694,2493.8,2493.7,0.80182]
[1751649757877,3.6497364,2493.8,2493.7,0.80182]
[1751649758083,2.9979364,2493.8,2493.7,0.80182]
[1751649759185,2.9979364,2493.8,2493.4,0.6619]
[1751649759482,0.9241364,2493.7,2493.6,0.80185]
[1751649759880,1.3876,2493.7,2493.6,0.80185]
[1751649760085,2.18942,2493.7,2493.6,0.80185]
[1751649760888,1.3876,2493.7,2493.6,0.80185]
[1751649761188,0.80187,2493.6,2493.5,0.80186]
[1751649761384,3.39216,2493.7,2493.2,3.2078]
[1751649761580,2.2637364,2493.5,2493.4,0.80188]
[1751649762687,1.51939,2493.8,2493.7,0.80182]
[1751649762988,2.4435264,2493.8,2493.7,0.80182]
[1751649763390,1.6417364,2493.8,2493.7,0.80182]
[1751649763589,2.4435264,2493.8,2493.7,0.80182]
[1751649763786,3.7831264,2493.8,2493.7,0.80182]
[1751649764586,0.80182,2493.7,2493.6,1.47012]
[1751649764790,2.15932,2493.7,2493.6,1.47012]
[1751649765187,2.15932,2493.7,2493.6,0.6683]
[1751649765388,5.4894364,2493.7,2493.4,0.80189]
[1751649765588,0.80187,2493.6,2493.5,0.80185]
[1751649765983,2.15937,2493.6,2493.5,0.80185]
[1751649766689,2.15935,2493.6,2493.5,0.80185]
[1751649767188,1.3575,2493.6,2493.5,0.80185]
[1751649767589,2.15935,2493.6,2493.5,0.80185]
[1751649769889,0.80191,2493.5,2493.4,0.80189]
[1751649770084,0.80198,2493.3,2493.1,3.2078]
[1751649770291,1.7261164,2493.3,2493.2,0.80198]
[1751649770594,2.1061,2493.4,2493.1,3.2078]
[1751649770595,1.7261164,2493.2,2493.1,3.2078]
[1751649770789,3.1013164,2493.2,2493.1,3.2078]
[1751649770988,3.1013164,2493.2,2493.1,4.00981]
[1751649771585,0.6679,2493.5,2493.1,4.00981]
[1751649771791,0.80194,2493.5,2493.4,0.8019]
[1751649772086,1.7260864,2493.4,2493.3,0.80192]
[1751649772292,3.1012864,2493.4,2493.3,0.80192]
[1751649772583,1.3752,2493.4,2493.3,0.80192]
[1751649772784,2.17711,2493.4,2493.3,0.80192]
[1751649773784,1.3752,2493.4,2493.3,0.80192]
[1751649774399,1.48636,2493.6,2493.5,0.80188]
[1751649774692,0.6845,2493.6,2493.5,0.80188]
[1751649774892,2.9222364,2493.6,2493.5,0.80188]
[1751649775095,3.7240864,2493.6,2493.5,0.80188]
[1751649780396,0.80188,2493.5,2493.4,0.80189]
[1751649780590,3.0729164,2493.5,2493.4,0.80189]
[1751649781393,0.80195,2493.4,2493.3,0.80192]
[1751649781588,3.0729864,2493.4,2493.3,0.80192]
[1751649781898,0.80198,2493.3,2493.2,0.80195]
[1751649782099,3.7465164,2493.3,2493.2,0.80195]
[1751649782598,0.80203,2493.1,2493.0,0.802]
[1751649782891,0.9241364,2493.1,2493.0,0.802]
[1751649783892,0.9241364,2493.1,2492.9,0.80205]
[1751649784099,0.80207,2492.9,2492.8,4.00988]
[1751649784296,1.7262064,2492.9,2492.8,4.00988]
[1751649784497,1.6029364,2492.9,2492.8,4.00988]
[1751649784696,2.4050064,2492.9,2492.8,4.00988]
[1751649785196,3.7769064,2492.9,2492.8,4.00988]
[1751649785397,2.9748364,2492.9,2492.8,4.00988]
[1751649786102,2.2960364,2492.9,2492.8,4.00988]
[1751649786800,0.9241364,2492.9,2492.8,4.00988]
[1751649788302,1.7262064,2492.9,2492.8,4.00988]
[1751649788602,0.9241364,2492.9,2492.8,4.00988]
[1751649789502,2.10141,2493.1,2493.0,0.80204]
[1751649789903,3.0255464,2493.1,2493.0,0.80204]
[1751649791106,2.2235364,2493.1,2493.0,0.80204]
[1751649791305,1.2994,2493.1,2493.0,0.80204]
[1751649792798,3.0255464,2493.1,2493.0,0.80204]
[1751649793999,2.2235364,2493.1,2493.0,0.80204]
[1751649794600,2.2235364,2493.1,2492.8,5.21303]
[1751649794601,5.21236,2493.7,2492.8,7.21823]
[1751649794798,0.80197,2493.4,2493.3,0.80192]
[1751649795198,0.80206,2493.1,2492.8,3.2078]
[1751649795406,1.52097,2493.0,2492.9,0.80204]
[1751649795607,2.91967,2493.0,2492.9,0.80204]
[1751649795906,3.8438064,2493.0,2492.9,0.80204]
[1751649796506,0.80207,2492.9,2492.8,4.00989]
[1751649796706,3.1249064,2492.9,2492.8,4.00989]
[1751649796907,2.20077,2492.9,2492.8,4.00989]
[1751649797814,3.1249064,2492.9,2492.8,4.00989]
[1751649799814,0.80211,2492.8,2492.7,0.80211]
[1751649800012,3.1394464,2492.8,2492.7,0.80211]
[1751649801113,3.1394464,2492.8,2492.5,0.80218]
[1751649801114,0.80217,2492.6,2492.5,0.80218]
[1751649801317,0.8022,2492.5,2492.4,4.01001]
[1751649801517,3.7769364,2492.5,2492.4,4.01001]
[1751649803819,3.7769364,2492.5,2492.4,3.2078]
[1751649804020,0.80224,2492.4,2492.3,0.7093]
[1751649804215,0.80227,2492.3,2492.2,0.80228]
[1751649804520,1.7264364,2492.2,2492.1,4.01013]
[1751649804914,0.9241364,2492.2,2492.1,4.01013]
[1751649809021,1.7265664,2491.8,2491.7,3.2078]
[1751649809223,3.0751664,2491.8,2491.7,4.01026]
[1751649809921,2.2727364,2491.8,2491.7,4.01026]
[1751649810414,0.672,2492.1,2492.0,0.80236]
[1751649810614,1.3007,2492.1,2492.0,0.80236]
[1751649810813,3.902,2492.3,2492.2,0.8023]
[1751649811016,4.8261364,2492.3,2492.2,0.8023]
[1751649811316,2.2248364,2492.3,2492.2,0.8023]
[1751649811520,3.0271064,2492.3,2492.2,0.8023]
[1751649812319,2.2248364,2492.3,2492.2,0.8023]
[1751649812723,3.0271064,2492.3,2492.2,0.8023]
[1751649813126,2.2248364,2492.3,2492.2,0.8023]
[1751649814029,3.0271064,2492.3,2492.2,0.8023]
[1751649814229,2.2248364,2492.3,2492.2,0.8023]
[1751649815230,3.0271064,2492.3,2492.2,0.8023]
[1751649815731,2.2248364,2492.3,2492.2,0.8023]
[1751649816525,0.80216,2492.7,2492.1,2.00584]
[1751649816733,1.49692,2492.8,2492.7,0.80214]
[1751649817032,1.10780151,2492.8,2492.7,0.80214]
[1751649817228,2.83404791,2492.8,2492.7,0.80214]
[1751649817433,1.7262464,2492.8,2492.7,0.80214]
[1751649817634,3.1108464,2492.8,2492.7,0.80214]
[1751649819333,0.80214,2492.7,2492.6,1.52214]
[1751649819529,1.7262764,2492.7,2492.6,1.52214]
[1751649819728,0.80217,2492.6,2492.5,0.80218]
[1751649819929,3.8306064,2492.6,2492.5,0.80218]
[1751649821234,3.2078,2492.9,2492.8,0.80211]
[1751649821436,4.00988,2492.9,2492.8,0.80211]
[1751649821736,1.7262164,2492.9,2492.8,0.80211]
[1751649822534,0.80215,2492.8,2492.7,0.80211]
[1751649822738,2.13805,2492.8,2492.7,0.80211]
[1751649823037,3.0621464,2492.8,2492.7,0.80211]
[1751649827442,2.2600364,2492.8,2492.4,1.3627]
[1751649827641,0.80217,2492.6,2492.5,0.80217]
[1751649827846,3.1199964,2492.7,2492.6,0.80217]
[1751649830649,0.8022,2492.6,2492.5,0.80217]
[1751649830947,2.103,2492.6,2492.5,0.80217]
[1751649831147,1.3008,2492.6,2492.5,0.80217]
[1751649832250,2.10297,2492.6,2492.5,0.80217]
[1751649832648,1.3008,2492.6,2492.5,0.80217]
[1751649833749,2.10297,2492.6,2492.5,0.80217]
[1751649833952,1.3008,2492.6,2492.5,0.80217]
[1751649836353,0.6517,2492.8,2492.6,0.80214]
[1751649836553,0.80214,2492.7,2492.6,0.80214]
[1751649836749,1.7262764,2492.7,2492.6,0.80214]
[1751649837049,4.6209,2492.9,2492.6,0.80214]
[1751649837050,3.2078,2492.9,2492.6,0.7018]
[1751649837355,3.8419764,2492.8,2492.7,0.80211]
[1751649839355,3.0398364,2492.8,2492.7,0.80211]
[1751649840359,3.8419464,2492.8,2492.7,0.80211]
[1751649840757,3.0398364,2492.8,2492.7,0.80211]
[1751649841354,3.8419464,2492.8,2492.7,0.80211]
[1751649841849,0.9241364,2492.8,2492.7,0.80211]
[1751649842055,2.3218364,2492.8,2492.7,0.80211]
[1751649842355,3.1239464,2492.8,2492.7,1.33751288]
[1751649842953,2.3218364,2492.8,2492.7,1.33751288]
[1751649843657,0.8023,2492.2,2492.1,3.18914204]
[1751649843857,0.8023,2492.2,2492.1,0.80233]
[1751649844057,1.7264364,2492.2,2492.1,0.80233]
[1751649844258,0.80236,2492.1,2492.0,0.80234]
[1751649844555,0.80239,2492.0,2491.8,0.6777]
[1751649844754,0.80243,2491.8,2491.7,4.01025]
[1751649844957,1.7265664,2491.8,2491.7,4.01025]
[1751649845151,0.80246,2491.7,2491.6,0.80247]
[1751649845358,1.7266664,2491.5,2491.4,1.48023]
[1751649845551,1.7266664,2491.5,2491.4,0.80253]
[1751649845754,0.80256,2491.4,2491.3,4.01037]
[1751649845952,5.4442364,2491.4,2490.9,6.39694204]
[1751649846159,0.9241364,2491.2,2491.1,0.80264]
[1751649846552,2.2364364,2491.2,2491.1,0.80264]
[1751649846757,3.0390564,2491.2,2491.1,0.80264]
[1751649847358,2.2364364,2491.2,2491.1,0.80264]
[1751649847562,3.0390564,2491.2,2491.1,0.80264]
[1751649848062,2.2364364,2491.2,2491.1,0.80264]
[1751649848863,3.0390564,2491.2,2491.1,0.80264]
[1751649849263,2.2364364,2491.2,2491.1,0.80264]
[1751649849761,3.0390564,2491.2,2491.1,0.80264]
[1751649850458,2.2364364,2491.2,2491.1,0.80264]
[1751649850659,3.0390564,2491.2,2491.1,0.80264]
[1751649851259,2.2364364,2491.2,2491.1,0.80264]
[1751649851661,3.0390564,2491.2,2491.1,0.80264]
[1751649851960,2.2364364,2491.2,2490.7,2.68335]
[1751649852262,0.9241364,2490.9,2490.8,0.80275]
[1751649852764,2.3090364,2490.9,2490.8,0.80275]
[1751649855472,3.1117564,2490.9,2490.8,0.80275]
[1751649855674,3.7712564,2490.9,2490.8,0.80275]
[1751649855875,2.9685364,2490.9,2490.8,0.80275]
[1751649856176,3.7712564,2490.9,2490.8,0.80275]
[1751649856375,2.9685364,2490.9,2490.8,0.80275]
[1751649857074,2.3090364,2490.9,2490.8,0.80275]
[1751649859079,3.1117564,2490.9,2490.8,0.80275]
[1751649859477,2.3090364,2490.9,2490.8,0.80275]
[1751649859673,2.00695,2490.8,2490.0,3.2078]
[1751649859984,0.80311,2489.7,2489.6,4.01091]
[1751649860279,3.2078,2490.2,2489.7,0.80308]
[1751649860280,0.9241364,2489.8,2489.7,0.80308]
[1751649861182,2.2902364,2489.8,2489.7,0.80308]
[1751649861570,3.0933064,2489.8,2489.7,0.80308]
[1751649861774,2.2902364,2489.8,2489.7,0.80308]
[1751649864579,44.81076,2490.2,2489.8,2.00769]
[1751649864883,1.3835,2490.4,2489.7,3.2078]
[1751649865084,0.9241364,2490.1,2490.0,0.80298]
[1751649865475,0.80302,2490.0,2489.9,0.80304]
[1751649865678,0.9241364,2490.0,2489.9,0.80304]
[1751649866285,2.2512364,2490.0,2489.9,0.80304]
[1751649866584,3.2078,2490.6,2490.4,0.80286]
[1751649866788,0.80289,2490.5,2490.4,0.80286]
[1751649867086,3.0541264,2490.5,2490.4,0.80286]
[1751649867684,2.2512364,2490.5,2490.4,0.80286]
[1751649868196,3.2078,2490.7,2490.6,0.80282]
[1751649868383,0.80278,2490.8,2490.5,0.6598]
[1751649868585,0.80278,2490.8,2490.7,0.80276]
[1751649868991,1.7269164,2490.8,2490.7,0.80276]
[1751649869490,0.80281,2490.7,2490.6,0.8028]
[1751649869690,3.0729464,2490.7,2490.6,0.8028]
[1751649869885,2.14881,2490.7,2490.6,0.8028]
[1751649870285,1.346,2490.7,2490.6,0.8028]
[1751649870786,0.687,2491.2,2490.7,2.00694]
[1751649870992,0.9241364,2490.9,2490.8,0.80275]
[1751649871191,57.802,2491.4,2490.8,0.80275]
[1751649871192,0.80254,2491.5,2491.4,0.80253]
[1751649871387,0.80259,2491.4,2491.3,0.80258]
[1751649871584,0.80255,2491.5,2491.4,0.80255]
[1751649871981,1.7266864,2491.5,2491.4,0.80255]
[1751649872185,1.7266864,2491.5,2491.1,2.65921]
[1751649872186,0.80258,2491.4,2491.3,0.80257]
[1751649872386,2.24248,2491.4,2491.3,0.80257]
[1751649872586,3.1666164,2491.4,2491.3,0.80257]
[1751649873588,2.3640364,2491.4,2491.3,0.80257]
[1751649874294,3.1665964,2491.4,2491.3,0.80257]
[1751649874794,2.3640364,2491.4,2491.3,0.80257]
[1751649875388,3.1665964,2491.4,2491.3,0.80257]
[1751649875894,2.3640364,2491.4,2491.3,0.80257]
[1751649876187,3.1665964,2491.4,2491.3,0.80257]
[1751649877495,0.80262,2491.2,2491.1,1.45521]
[1751649877794,1.7267764,2491.2,2491.1,0.80265]
[1751649878191,3.0720764,2491.2,2491.1,0.80265]
[1751649878685,3.0720764,2491.2,2491.0,0.80267]
[1751649878686,0.80269,2491.1,2491.0,0.80267]
[1751649878886,2.14799,2491.1,2491.0,0.80267]
[1751649879097,3.0721264,2491.1,2491.0,0.80267]
[1751649879491,0.80272,2490.9,2490.8,1.49151]
[1751649879687,0.9241364,2490.9,2490.8,1.49151]
[1751649879891,1.3453,2491.1,2491.0,0.80269]
[1751649880385,2.2694364,2491.1,2491.0,0.80269]
[1751649880992,3.0721064,2491.1,2491.0,0.80269]
[1751649881195,0.80271,2491.0,2490.9,0.80269]
[1751649881398,3.0702464,2491.0,2490.9,0.80269]
[1751649881694,2.2675364,2491.0,2490.9,0.80269]
[1751649882690,1.3434,2491.0,2490.9,0.80269]
[1751649882895,3.0702264,2491.0,2490.9,0.80269]
[1751649883100,0.80277,2490.9,2490.8,0.80273]
[1751649883300,3.0703064,2490.9,2490.8,0.80273]
[1751649883796,3.0702764,2490.9,2490.8,0.80275]
[1751649884596,0.80282,2490.6,2490.5,4.71832]
[1751649884802,1.7269464,2490.7,2490.6,0.80282]
[1751649885198,0.80285,2490.6,2490.5,0.80282]
[1751649886499,0.80288,2490.5,2490.4,0.80285]
[1751649886700,0.9241364,2490.5,2490.4,0.80285]
[1751649888806,1.7269864,2490.5,2490.4,0.80285]
[1751649888999,0.9241364,2490.5,2490.4,0.80285]
[1751649892907,1.7269864,2490.5,2490.4,0.80285]
[1751649893302,0.9241364,2490.5,2490.4,0.80285]
[1751649893708,4.01061,2490.7,2490.6,0.80282]
[1751649894006,3.2078,2490.7,2490.6,0.80282]
[1751649894308,4.1319364,2490.7,2490.6,0.80282]
[1751649894807,0.9241364,2490.7,2490.6,0.80282]
[1751649895411,1.7269164,2490.7,2490.6,0.80282]
[1751649899713,0.9241364,2490.7,2490.6,0.80282]
[1751649899913,2.2273364,2490.7,2490.6,0.80282]
[1751649900211,3.0301164,2490.7,2490.6,0.80282]
[1751649903815,0.9241364,2490.7,2490.6,0.80282]
[1751649904220,1.7269164,2490.7,2490.6,0.80282]
[1751649904412,0.9241364,2490.7,2490.6,0.80282]
[1751649905008,3.2078,2491.0,2490.6,0.80282]
[1751649905009,3.2078,2491.0,2490.9,0.80272]
[1751649905213,4.01049,2491.0,2490.9,0.80272]
[1751649905515,4.1319364,2491.0,2490.9,0.80272]
[1751649906317,4.9346264,2491.0,2490.9,0.80272]
[1751649906511,3.2078,2491.0,2490.9,0.80272]
[1751649906813,4.01049,2491.0,2490.9,0.80272]
[1751649907012,4.6477,2491.3,2490.9,2.00676]
[1751649907219,3.2078,2491.3,2491.2,0.80262]
[1751649907919,2.00603,2491.9,2491.2,0.80262]
[1751649907920,3.2078,2491.9,2491.2,10.21436]
[1751649908122,0.9241364,2491.8,2491.7,0.80246]
[1751649908517,6.02861,2491.9,2491.8,0.80243]
[1751649908716,7.1161086,2491.9,2491.8,0.80243]
[1751649908917,6.9527464,2491.9,2491.8,0.80243]
[1751649910320,0.80254,2491.6,2491.5,0.80252]
[1751649910617,0.80248,2491.7,2491.6,0.80245]
[1751649911122,1.7266164,2491.7,2491.6,0.80245]
[1751649912317,0.9241364,2491.7,2491.6,0.80245]
[1751649912515,3.8792,2491.9,2491.4,2.00639]
[1751649912717,0.80243,2491.8,2491.5,0.6552]
[1751649913018,0.80249,2491.6,2491.5,0.6552]
[1751649913218,0.80261,2491.3,2491.2,0.80258]
[1751649913517,0.9241364,2491.3,2491.2,0.80258]
[1751649913718,1.49455,2491.5,2491.4,0.80256]
[1751649914218,2.4186864,2491.5,2491.4,0.80256]
[1751649916014,0.80256,2491.4,2491.3,1.45916]
[1751649916220,1.7266964,2491.4,2491.3,1.45916]
[1751649916824,1.7266964,2491.4,2491.3,0.80259]
[1751649917427,0.9241364,2491.4,2491.3,0.80259]
[1751649917932,3.2078,2491.9,2491.7,0.80243]
[1751649918220,3.2078,2491.9,2491.2,3.2078]
[1751649918221,0.80257,2491.5,2491.2,3.2078]
[1751649918429,0.80258,2491.4,2491.3,0.80256]
[1751649918822,0.80259,2491.3,2491.2,4.01039]
[1751649919026,2.3910264,2491.3,2491.2,4.01039]
[1751649921223,1.5884364,2491.3,2491.2,4.01039]
[1751649922129,0.9241364,2491.3,2491.2,4.01039]
[1751649923125,0.80255,2491.5,2491.4,0.80256]
[1751649923628,1.7266864,2491.5,2491.4,0.80256]
[1751649924330,0.80259,2491.4,2491.3,0.80257]
[1751649924531,1.7267264,2491.3,2491.2,3.2078]
[1751649924729,2.4261264,2491.3,2491.2,4.01042]
[1751649924935,2.4261264,2491.3,2491.2,3.2078]
[1751649925327,0.80265,2491.1,2491.0,0.80267]
[1751649925527,0.9241364,2491.2,2491.1,0.80262]
[1751649925728,3.9072,2491.3,2491.2,0.80262]
[1751649925929,0.80256,2491.5,2491.4,0.80253]
[1751649926534,1.7266964,2491.5,2491.4,0.80253]
[1751649927032,0.9241364,2491.5,2491.4,0.80253]
[1751649928732,1.7266664,2491.5,2491.4,0.80253]
[1751649929929,0.9241364,2491.5,2491.4,0.80253]
[1751649930334,3.2078,2491.7,2491.6,0.80249]
[1751649930534,4.01016,2492.1,2492.0,0.80236]
[1751649930735,5.0902867,2492.1,2492.0,0.80236]
[1751649930936,7.4335231,2492.1,2492.0,0.80236]
[1751649931236,6.3533964,2492.1,2492.0,0.80236]
[1751649931836,5.5510364,2492.1,2492.0,0.80236]
[1751649932931,3.2078,2492.1,2492.0,0.80236]
[1751649934731,4.01013,2492.1,2492.0,0.80236]
[1751649934936,6.2576664,2492.1,2492.0,0.80236]
[1751649935841,0.80243,2491.9,2491.8,0.80239]
[1751649936034,0.80243,2491.8,2491.7,0.80244]
[1751649936239,7.7046664,2491.8,2491.7,0.80244]
[1751649938739,4.4968664,2491.8,2491.7,0.80244]
[1751649939639,5.5952406,2491.8,2491.7,0.80244]
[1751649941440,0.80249,2491.7,2491.6,0.80246]
[1751649941641,3.0397264,2491.7,2491.6,0.80246]
[1751649943735,2.2372364,2491.7,2491.6,0.80246]
[1751649944041,0.9241364,2491.7,2491.6,0.80246]
[1751649944245,2.11549,2492.0,2491.9,0.8024]
[1751649944432,3.22351325,2492.0,2491.9,0.8024]
[1751649944635,3.34525965,2492.0,2491.5,2.68794]
[1751649944836,4.9343864,2491.8,2491.7,0.80241]
[1751649947440,1.7265864,2491.8,2491.7,0.80241]
[1751649948040,3.1533864,2491.8,2491.7,0.80241]
[1751649950344,4.01021,2491.9,2491.8,0.80243]
[1751649950644,5.12698486,2491.9,2491.8,0.80243]
[1751649950842,6.05112126,2491.9,2491.8,0.80243]
[1751649951041,2.84332126,2491.9,2491.8,0.80243]
[1751649951242,1.7265464,2491.9,2491.8,0.80243]
[1751649951441,2.8433841,2491.9,2491.8,0.80243]
[1751649952241,1.7265464,2491.9,2491.8,0.80243]
[1751649952744,2.84340519,2491.9,2491.8,0.80243]
[1751649953046,1.7265464,2491.9,2491.8,0.80243]
[1751649953545,0.80249,2491.8,2491.7,0.80244]
[1751649953745,6.3233264,2491.8,2491.7,0.80244]
[1751649953947,0.80249,2491.7,2491.6,0.80246]
[1751649954140,3.1155264,2491.7,2491.6,0.80246]
[1751649955640,0.80253,2491.6,2491.5,0.8025]
[1751649955841,0.80252,2491.5,2491.4,1.45325]
[1751649956145,1.7266564,2491.5,2491.4,1.45325]
[1751649956345,3.1155564,2491.5,2491.4,1.45325]
[1751649957747,2.3130364,2491.5,2491.4,1.45325]
[1751649957940,3.1155664,2491.5,2491.4,1.45325]
[1751649958141,0.9241364,2491.5,2491.4,1.45325]
[1751649958947,0.80248,2491.7,2491.4,0.6507]
[1751649959141,3.9052,2491.8,2491.4,1.45326]
[1751649959142,1.7266664,2491.5,2491.4,1.45326]
[1751649959550,0.80252,2491.6,2491.5,0.80249]
[1751649961644,2.17279,2491.7,2491.6,0.80249]
[1751649961844,4.21053806,2491.7,2491.6,0.80249]
[1751649962441,4.21050806,2491.7,2491.6,0.80249]
[1751649962647,2.03774806,2491.7,2491.6,0.80249]
[1751649963249,1.11361166,2491.7,2491.6,0.80249]
[1751649963649,3.2078,2491.8,2491.7,0.80246]
[1751649964947,4.9343664,2491.8,2491.7,0.80246]
[1751649965645,3.2078,2491.8,2491.7,0.80246]
[1751649965849,4.31335427,2491.8,2491.7,0.80246]
[1751649966054,2.0737,2492.2,2492.0,0.80233]
[1751649966255,1.10534369,2492.1,2492.0,0.80233]
[1751649966555,2.02948009,2492.1,2492.0,0.80233]
[1751649966754,1.10534369,2492.1,2492.0,0.80233]
[1751649968348,2.87603,2492.2,2492.1,0.80233]
[1751649968548,3.96388573,2492.2,2492.1,0.80233]
[1751649968755,4.88802213,2492.2,2492.1,0.80233]
[1751649969853,0.80236,2492.0,2491.9,0.6793]
[1751649970160,0.9241364,2492.0,2491.6,3.2078]
[1751649970344,0.80246,2491.7,2491.6,1.50456]
[1751649970748,0.80253,2491.6,2491.5,0.80249]
[1751649970954,1.7266664,2491.6,2491.5,0.80249]
[1751649971155,2.17073,2491.6,2491.5,0.80249]
[1751649971656,3.0948664,2491.6,2491.5,0.80249]
[1751649972952,2.2923364,2491.6,2491.5,0.80249]
[1751649973152,0.80236,2492.1,2491.5,2.00632]
[1751649973346,0.80243,2491.9,2491.8,0.8024]
[1751649973553,1.7265264,2492.0,2491.9,0.8024]
[1751649973752,1.88750516,2492.0,2491.9,0.8024]
[1751649973952,0.80239,2492.0,2491.9,0.8024]
[1751649974756,0.80247,2491.8,2491.7,0.80243]
[1751649974954,3.7345564,2491.9,2491.8,0.80243]
[1751649975455,3.7345564,2491.9,2491.6,2.6825]
[1751649975456,0.80246,2491.8,2491.7,0.80244]
[1751649975660,3.0476964,2491.8,2491.7,0.80246]
[1751649975861,3.7552964,2491.8,2491.7,0.80246]
[1751649976657,0.8025,2491.7,2491.6,0.80246]
[1751649976963,3.0477364,2491.7,2491.6,0.80246]
[1751649978259,2.2452364,2491.7,2491.6,0.80246]
[1751649979864,3.0476964,2491.7,2491.6,0.80246]
[1751649980662,2.2452364,2491.7,2491.6,0.80246]
[1751649980959,1.3211,2491.7,2491.6,0.80246]
[1751649981165,2.12356,2491.7,2491.6,0.80246]
[1751649984567,0.80252,2491.6,2491.5,0.8025]
[1751649984863,3.1282564,2491.6,2491.5,0.8025]
[1751649985265,0.8026,2491.4,2491.3,0.80256]
[1751649985470,1.7267364,2491.4,2491.3,0.80256]
[1751649985667,1.4016,2491.4,2491.3,0.80256]
[1751649986268,2.20416,2491.4,2491.3,0.80256]
[1751649986470,2.20416,2491.4,2491.2,0.6726]
[1751649986471,2.3257364,2491.4,2490.8,6.39206813]
[1751649986662,1.7268564,2490.9,2490.8,1.51402]
[1751649986864,1.7268564,2490.9,2490.8,1.51405]
[1751649987170,3.8445564,2490.9,2490.8,1.51405]
[1751649987371,0.9241364,2490.9,2490.8,1.51405]
[1751649987667,0.80275,2490.8,2490.7,3.2078]
[1751649987972,0.80278,2490.7,2490.6,1.51411]
[1751649988471,0.80278,2490.7,2490.4,3.2078]
[1751649988472,0.80285,2490.5,2490.4,3.2078]
[1751649989060,0.80288,2490.4,2490.3,0.7113]
[1751649989270,1.7270164,2490.4,2490.3,0.7113]
[1751649989470,3.7301164,2490.4,2490.3,0.7113]
[1751649989676,2.9272364,2490.4,2490.0,0.803]
[1751649989969,0.80304,2489.9,2489.8,3.8646]
[1751649990372,1.3462,2489.9,2489.8,4.66767]
[1751649990770,0.80304,2490.0,2489.9,0.80304]
[1751649991168,1.7271764,2490.0,2489.9,0.80304]
[1751649991970,40.8,2490.5,2489.9,5.0]
[1751649992171,0.80284,2490.6,2490.5,0.80283]
[1751649992373,1.7269464,2490.7,2490.6,0.80282]
[1751649992571,0.9241364,2490.7,2490.6,0.80282]